bitfinex/quotes_BTCUSD_20251221
["timestamp","ask_amount","ask_price","bid_price","bid_amount"]
[1766314601852,0.08463795,88687.0,88686.0,0.00027596]
[1766314602354,0.03387795,88687.0,88686.0,0.00027596]
[1766314602552,0.08463795,88687.0,88686.0,0.00027596]
[1766314602785,0.08243709,88687.0,88686.0,0.00027596]
[1766314603045,0.05519011,88703.0,88686.0,0.00027596]
[1766314603250,0.01127255,88711.0,88693.0,0.31365937]
[1766314603251,0.03387486,88698.0,88693.0,0.31365937]
[1766314603384,0.01127344,88704.0,88698.0,0.00055]
[1766314603589,0.04512,88699.0,88698.0,0.00055]
[1766314603792,0.04512,88699.0,88686.0,0.00010762]
[1766314603998,0.5636,88697.0,88689.0,0.31365937]
[1766314604198,0.57712314,88696.0,88689.0,3.7e-07]
[1766314604400,0.5636,88696.0,88686.0,0.00010762]
[1766314605732,0.5636,88696.0,88686.0,0.31376699]
[1766314606300,0.5636,88696.0,88686.0,0.00010762]
[1766314606495,0.5636,88696.0,88686.0,0.31376699]
[1766314606907,0.00564,88698.0,88696.0,0.000549]
[1766314607586,0.00564,88698.0,88689.0,0.45183]
[1766314608765,0.005091,88698.0,88689.0,0.45183]
[1766314608987,0.00042426,88697.0,88692.0,0.58658]
[1766314609182,2.6e-07,88697.0,88692.0,1.03841]
[1766314609387,0.00564,88696.0,88692.0,0.45183]
[1766314609545,0.04512,88703.0,88688.0,0.31365937]
[1766314609546,0.04512,88703.0,88695.0,1.03841]
[1766314609746,0.0451436,88710.0,88695.0,1.03841]
[1766314609949,0.05076,88709.0,88688.0,0.31365937]
[1766314610162,0.05076,88709.0,88687.0,0.00024531]
[1766314610163,0.05076,88709.0,88699.0,0.31365937]
[1766314610339,0.05076,88709.0,88700.0,0.58658]
[1766314610772,0.000548,88700.0,88691.0,1.03841]
[1766314610971,0.00564,88699.0,88691.0,1.03841]
[1766314612806,0.00564,88699.0,88691.0,0.45183]
[1766314613134,0.00564,88699.0,88687.0,0.00024531]
[1766314613349,0.01916314,88699.0,88687.0,0.00024531]
[1766314613553,0.00564,88699.0,88687.0,0.00024531]
[1766314614522,0.00564,88699.0,88687.0,3.1e-07]
[1766314614523,0.32842314,88698.0,88687.0,3.1e-07]
[1766314614701,0.01352314,88697.0,88687.0,3.1e-07]
[1766314618434,0.00564,88699.0,88687.0,3.1e-07]
[1766314618596,0.01352314,88698.0,88687.0,3.1e-07]
[1766314619437,0.00564,88699.0,88687.0,3.1e-07]
[1766314620235,0.01352314,88698.0,88687.0,3.1e-07]
[1766314621072,0.00564,88699.0,88698.0,0.000246]
[1766314621787,0.00564,88699.0,88690.0,1.03841]
[1766314622487,0.00564,88699.0,88690.0,0.58658]
[1766314622687,0.00564,88699.0,88692.0,1.03841]
[1766314624064,0.00564,88699.0,88692.0,0.45183]
[1766314624274,0.00564,88698.0,88694.0,0.58658]
[1766314624481,0.00564,88698.0,88695.0,0.58658]
[1766314624680,0.005394,88698.0,88695.0,0.58658]
[1766314624813,4e-06,88698.0,88696.0,1.03841]
[1766314625219,4e-06,88698.0,88689.0,0.57093]
[1766314625421,4e-06,88698.0,88693.0,0.57093]
[1766314625657,4e-06,88698.0,88695.0,1.0228]
[1766314626679,0.04512,88702.0,88688.0,0.31365937]
[1766314626680,0.00564,88700.0,88691.0,0.57093]
[1766314626857,0.00564,88700.0,88697.0,0.57093]
[1766314627042,0.00564,88700.0,88699.0,1.0228]
[1766314627263,0.0001,88706.0,88699.0,1.0228]
[1766314627264,0.00564,88701.0,88699.0,1.0228]
[1766314627439,0.00564,88701.0,88700.0,1.03632874]
[1766314627639,0.00564,88701.0,88700.0,1.0228]
[1766314628190,0.00564,88702.0,88700.0,1.0228]
[1766314628596,0.00564,88702.0,88700.0,0.45187]
[1766314628757,0.0001,88711.0,88700.0,0.45187]
[1766314628758,0.00564,88705.0,88701.0,0.01352859]
[1766314628953,0.00564,88705.0,88704.0,1.0228]
[1766314630495,0.00564,88705.0,88704.0,0.45187]
[1766314633306,0.00564,88715.0,88701.0,0.45187]
[1766314633727,0.00564,88715.0,88702.0,1.0228]
[1766314634137,0.00564,88715.0,88703.0,0.45187]
[1766314634377,0.00564,88715.0,88710.0,0.57093]
[1766314634543,0.00564,88715.0,88713.0,0.45187]
[1766314634775,0.00564,88715.0,88714.0,0.57093]
[1766314634975,0.00564,88715.0,88714.0,0.570381]
[1766314635152,0.00564,88722.0,88715.0,0.45187]
[1766314635582,0.00564,88722.0,88715.0,0.45132]
[1766314635779,0.00573703,88722.0,88715.0,0.45132]
[1766314639471,0.00573703,88722.0,88719.0,0.45187]
[1766314639472,0.00564,88722.0,88719.0,0.45187]
[1766314639636,0.35861,88737.0,88710.0,0.3134529]
[1766314639637,0.00564,88727.0,88721.0,0.57093]
[1766314639842,0.00564,88727.0,88723.0,0.57093]
[1766314640384,0.00564,88727.0,88723.0,1.0228]
[1766314641471,0.00564,88727.0,88723.0,0.45187]
[1766314641708,0.00564,88727.0,88724.0,0.57093]
[1766314641923,0.00564,88727.0,88723.0,0.45187]
[1766314642460,0.00564,88727.0,88720.0,0.57093]
[1766314642996,0.00564,88727.0,88716.0,0.57657]
[1766314644182,0.00258,88727.0,88716.0,0.57657]
[1766314644598,0.00258,88727.0,88718.0,1.06776]
[1766314644996,0.00258,88727.0,88718.0,1.09653]
[1766314646528,0.00258,88727.0,88717.0,1.09653]
[1766314646732,0.00258,88727.0,88718.0,0.5997]
[1766314651907,0.00258,88727.0,88714.0,0.00391943]
[1766314652062,0.00258,88727.0,88714.0,9.703e-05]
[1766314653909,0.00258,88727.0,88715.0,1.09653]
[1766314654480,0.00258,88727.0,88714.0,9.703e-05]
[1766314654481,0.002031,88727.0,88717.0,0.5997]
[1766314654662,0.002031,88727.0,88714.0,9.703e-05]
[1766314654663,1e-06,88727.0,88714.0,9.703e-05]
[1766314655101,1e-06,88727.0,88715.0,1.03668]
[1766314655310,1e-06,88727.0,88714.0,9.703e-05]
[1766314655513,1e-06,88727.0,88715.0,1.03668]
[1766314656019,1e-06,88727.0,88714.0,9.703e-05]
[1766314656231,1e-06,88727.0,88715.0,1.03668]
[1766314656438,1e-06,88727.0,88714.0,9.703e-05]
[1766314656785,1e-06,88727.0,88715.0,1.03668]
[1766314657310,1e-06,88727.0,88716.0,0.46542]
[1766314657540,1e-06,88727.0,88717.0,1.03668]
[1766314657912,0.00564,88737.0,88717.0,1.03668]
[1766314658074,0.3134529,88730.0,88717.0,1.03668]
[1766314658509,0.3134529,88730.0,88718.0,0.00564]
[1766314660684,0.7871629,88730.0,88718.0,0.005091]
[1766314660903,0.47371,88729.0,88718.0,0.005091]
[1766314662442,0.6689329,88730.0,88719.0,0.00564]
[1766314662443,0.47371,88726.0,88719.0,0.00564]
[1766314662664,0.47371,88725.0,88718.0,0.00564]
[1766314674520,0.473161,88725.0,88718.0,0.00564]
[1766314677157,0.0001,88729.0,88718.0,0.00564]
[1766314681957,0.00564,88731.0,88724.0,1.03668]
[1766314683790,0.00564,88737.0,88724.0,1.04232]
[1766314683972,0.47371,88736.0,88724.0,1.04232]
[1766314688343,0.00564,88737.0,88714.0,9.703e-05]
[1766314688344,0.01126976,88733.0,88714.0,9.703e-05]
[1766314688541,0.48693,88721.0,88714.0,0.00564]
[1766314688780,0.49257,88728.0,88714.0,0.00564]
[1766314688985,0.49257,88728.0,88714.0,0.49621]
[1766314689129,0.49257,88728.0,88715.0,1.11531]
[1766314689543,0.49257,88728.0,88716.0,0.62474]
[1766314689742,0.49257,88728.0,88717.0,1.11531]
[1766314689941,0.49257,88728.0,88718.0,0.93820739]
[1766314690475,0.0001,88739.0,88724.0,0.62474]
[1766314690653,0.0001,88739.0,88731.0,0.62474]
[1766314690837,0.0001,88739.0,88732.0,0.49057]
[1766314691037,0.0001,88739.0,88734.0,0.62474]
[1766314696044,0.0001,88739.0,88735.0,0.00564]
[1766314703320,0.0001,88739.0,88735.0,0.00375525]
[1766314703480,0.0001,88739.0,88735.0,0.00365525]
[1766314706112,0.0112657,88765.0,88739.0,0.0001]
[1766314706342,0.35548,88766.0,88739.0,0.0001]
[1766314706343,0.01126646,88759.0,88740.0,0.00564]
[1766314706550,0.4710662,88761.0,88741.0,1.10884]
[1766314706551,0.549985,88760.0,88741.0,1.10884]
[1766314706765,0.4598,88757.0,88741.0,1.10884]
[1766314706968,0.46544,88756.0,88741.0,1.10884]
[1766314707701,0.46554768,88756.0,88741.0,1.10884]
[1766314714322,0.35548,88754.0,88738.0,0.0586107]
[1766314714534,0.00055,88741.0,88739.0,0.00564]
[1766314714751,0.4598,88748.0,88738.0,0.0586107]
[1766314714930,0.47332314,88747.0,88738.0,0.0586107]
[1766314715147,0.42223,88743.0,88732.0,0.0586107]
[1766314715354,0.42223,88742.0,88733.0,0.00564]
[1766314715580,0.42223,88742.0,88734.0,0.00564]
[1766314715788,0.42223,88742.0,88732.0,0.0586107]
[1766314715993,0.42223,88742.0,88734.0,0.00564]
[1766314718456,0.35548,88742.0,88734.0,0.00564]
[1766314718661,0.42223,88741.0,88734.0,0.00564]
[1766314720633,0.42223,88741.0,88732.0,0.0642507]
[1766314721431,0.42223,88741.0,88733.0,0.00564]
[1766314729566,0.00055,88733.0,88730.0,0.00564]
[1766314729773,0.42223,88738.0,88730.0,0.00564]
[1766314730952,0.42787,88738.0,88728.0,0.0001]
[1766314731162,0.77761,88732.0,88724.0,0.00564]
[1766314733040,0.421645,88732.0,88724.0,0.00564]
[1766314733246,0.00564,88738.0,88724.0,0.00564]
[1766314733456,0.00564,88738.0,88724.0,0.62746]
[1766314734101,0.00564,88738.0,88724.0,1.12326]
[1766314734318,0.35548,88740.0,88724.0,0.50144]
[1766314734519,0.0001,88742.0,88729.0,0.62182]
[1766314734757,0.00564,88739.0,88733.0,0.62182]
[1766314735380,0.00564,88739.0,88733.0,1.11762]
[1766314738322,0.0001,88742.0,88733.0,1.11762]
[1766314741224,0.0001,88742.0,88731.0,0.62182]
[1766314741419,0.0001,88742.0,88732.0,1.11762]
[1766314741622,0.0001,88742.0,88733.0,0.62182]
[1766314741969,0.0001,88742.0,88734.0,0.4958]
[1766314742178,0.00400245,88744.0,88742.0,0.0001]
[1766314742406,0.0001,88748.0,88742.0,0.0001]
[1766314742602,0.0001,88748.0,88739.0,0.62182]
[1766314743725,0.0001,88748.0,88740.0,0.62182]
[1766314743931,0.0001,88748.0,88740.0,1.11762]
[1766314744521,0.00564,88749.0,88741.0,0.63534249]
[1766314744724,0.00564,88749.0,88742.0,0.62182]
[1766314744923,0.00564,88749.0,88742.0,1.08252]
[1766314746235,0.00564,88749.0,88743.0,0.01352219]
[1766314746432,0.00564,88749.0,88742.0,1.08252]
[1766314748079,0.00574768,88756.0,88744.0,0.4607]
[1766314748264,0.00574768,88756.0,88745.0,0.58633]
[1766314749932,0.42749768,88756.0,88745.0,0.58633]
[1766314751947,0.43876452,88756.0,88744.0,0.4607]
[1766314752423,0.42749768,88756.0,88744.0,0.4607]
[1766314753586,0.42175,88755.0,88744.0,0.4607]
[1766314767282,0.42175,88755.0,88745.0,0.61844]
[1766314768846,0.00574768,88756.0,88747.0,0.61844]
[1766314769426,0.00574768,88756.0,88746.0,0.00564]
[1766314769630,0.00574768,88756.0,88748.0,0.61844]
[1766314775459,0.00010768,88756.0,88748.0,0.61844]
[1766314786439,0.00010768,88756.0,88749.0,0.57133]
[1766314791898,0.00010768,88756.0,88742.0,0.0586107]
[1766314791899,9.9e-05,88749.0,88742.0,0.09245838]
[1766314792105,9.9e-05,88749.0,88743.0,0.00564]
[1766314792318,0.42175,88755.0,88743.0,0.00564]
[1766314792517,0.42175,88755.0,88743.0,1.0324]
[1766314794389,0.42175,88755.0,88744.0,0.57133]
[1766314795478,0.42175,88755.0,88743.0,0.46107]
[1766314795479,0.00010768,88756.0,88745.0,0.45543]
[1766314797058,0.00010768,88756.0,88743.0,0.00564]
[1766314797059,6.8e-07,88756.0,88746.0,0.57133]
[1766314797292,6.8e-07,88756.0,88748.0,0.57133]
[1766314798229,0.0004,88758.0,88743.0,0.00564]
[1766314798230,6.8e-07,88758.0,88753.0,0.45543]
[1766314798402,0.00564,88764.0,88758.0,0.00034232]
[1766314798624,0.00570065,88764.0,88758.0,0.00034232]
[1766314798983,0.00570065,88764.0,88756.0,1.02676]
[1766314800515,0.00570065,88764.0,88753.0,0.00564]
[1766314800516,6.065e-05,88764.0,88758.0,0.57133]
[1766314800738,6.065e-05,88764.0,88760.0,1.02676]
[1766314800928,6.5e-07,88764.0,88760.0,1.02676]
[1766314801130,6.5e-07,88764.0,88760.0,0.45543]
[1766314801335,6.5e-07,88764.0,88760.0,0.455163]
[1766314801756,6.5e-07,88764.0,88750.0,0.06087146]
[1766314801757,0.35548,88763.0,88750.0,0.06087146]
[1766314801958,0.41677,88762.0,88751.0,0.00564]
[1766314802095,0.41677,88761.0,88752.0,0.00564]
[1766314802302,0.43029314,88760.0,88752.0,0.00564]
[1766314802502,0.41677,88760.0,88752.0,0.00564]
[1766314804690,0.41677,88760.0,88752.0,0.00509]
[1766314807911,0.41677,88760.0,88747.0,0.55015025]
[1766314808117,0.35548,88755.0,88748.0,0.00564]
[1766314808326,0.41113,88754.0,88748.0,0.00564]
[1766314808520,0.41113,88752.0,88742.0,0.09472178]
[1766314808828,0.41113,88752.0,88743.0,0.00564]
[1766314809789,0.00564,88761.0,88740.0,0.06087146]
[1766314809790,0.41113,88750.0,88740.0,0.06087146]
[1766314810020,0.41113,88746.0,88740.0,0.00564]
[1766314810264,0.41113,88746.0,88739.0,0.00564]
[1766314815386,0.410581,88746.0,88739.0,0.00564]
[1766314815999,0.00564,88752.0,88740.0,0.0586107]
[1766314816203,0.00564,88759.0,88752.0,0.61903]
[1766314816612,0.00564,88759.0,88752.0,0.61848]
[1766314817695,0.00564,88759.0,88752.0,0.61026799]
[1766314817901,0.00564,88759.0,88751.0,0.49734]
[1766314818132,0.34972,88763.0,88751.0,0.49734]
[1766314819209,0.34972,88763.0,88752.0,0.01352082]
[1766314819839,0.34972,88763.0,88752.0,0.63200082]
[1766314820084,0.34972,88763.0,88752.0,0.61848]
[1766314821523,0.34972,88763.0,88752.0,1.11582]
[1766314822351,0.00564065,88764.0,88754.0,0.61848]
[1766314822566,0.00564065,88764.0,88755.0,0.01916036]
[1766314822756,0.00564065,88764.0,88757.0,1.11582]
[1766314823577,0.00564065,88764.0,88755.0,0.00564]
[1766314824000,0.33844,88761.0,88752.0,0.00564]
[1766314824230,0.33444,88754.0,88752.0,2.45e-06]
[1766314826419,0.33389,88754.0,88752.0,2.45e-06]
[1766314829884,0.33389,88754.0,88747.0,0.00564]
[1766314832449,0.33389,88759.0,88747.0,0.00564]
[1766314832576,0.69194,88759.0,88747.0,0.00564]
[1766314832778,0.33389,88758.0,88747.0,0.00564]
[1766314835966,0.33389,88758.0,88747.0,0.58927]
[1766314836371,0.33389,88758.0,88747.0,0.65013289]
[1766314838381,0.33389,88758.0,88747.0,0.06650289]
[1766314839005,0.33389,88756.0,88747.0,0.06650289]
[1766314839208,0.33389,88756.0,88747.0,0.00564]
[1766314839418,0.33389,88756.0,88747.0,0.06650289]
[1766314841518,0.000549,88747.0,88733.0,0.0811008]
[1766314841754,0.23962,88744.0,88738.0,0.00564]
[1766314842033,0.22128475,88744.0,88738.0,0.00564]
[1766314842517,0.3586,88738.0,88725.0,0.0811008]
[1766314842712,0.35805,88738.0,88717.0,0.0811008]
[1766314842993,0.35805,88736.0,88726.0,0.00564]
[1766314843926,0.19872,88735.0,88726.0,0.00564]
[1766314844143,0.001099,88726.0,88718.0,0.00564]
[1766314844354,0.001099,88726.0,88711.0,0.58373]
[1766314844560,0.19756,88723.0,88713.0,0.00564]
[1766314845169,0.03386281,88729.0,88711.0,0.00020768]
[1766314845375,0.19756,88725.0,88712.0,0.00564]
[1766314845634,0.19756,88723.0,88712.0,0.00564]
[1766314851004,0.000549,88712.0,88709.0,0.0001]
[1766314851268,0.00063787,88712.0,88709.0,0.00574]
[1766314851445,8.887e-05,88712.0,88709.0,0.00574]
[1766314853245,8.887e-05,88712.0,88709.0,0.00269]
[1766314858862,8.887e-05,88712.0,88709.0,0.002141]
[1766314859075,8.887e-05,88712.0,88708.0,0.00564]
[1766314859502,8.7e-07,88712.0,88708.0,0.00564]
[1766314864360,0.18616087,88712.0,88706.0,0.00564]
[1766314864571,0.00055,88706.0,88705.0,0.00564]
[1766314864749,0.54421087,88712.0,88705.0,0.00564]
[1766314865093,0.18616087,88712.0,88705.0,0.00564]
[1766314873293,0.00564,88714.0,88712.0,0.00054813]
[1766314873502,0.00564,88714.0,88709.0,0.45384]
[1766314873707,0.00564,88714.0,88709.0,1.07355]
[1766314873924,0.1918,88734.0,88714.0,0.61971]
[1766314874134,0.08081085,88766.0,88714.0,0.61971]
[1766314874135,0.03386082,88731.0,88721.0,0.45384]
[1766314874341,0.00564,88733.0,88725.0,0.45384]
[1766314874543,0.00564,88733.0,88726.0,1.07355]
[1766314875686,0.58370929,88741.0,88730.0,1.07355]
[1766314875687,0.00564,88735.0,88730.0,1.07355]
[1766314876123,0.00564,88735.0,88726.0,0.61971]
[1766314877610,0.00564,88735.0,88726.0,0.61387108]
[1766314877744,0.00564,88735.0,88726.0,0.61230098]
[1766314878132,0.00564,88735.0,88727.0,0.46553]
[1766314883300,0.03385811,88747.0,88727.0,0.46553]
[1766314883301,0.03385811,88747.0,88736.0,0.46553]
[1766314883473,0.23185,88752.0,88738.0,0.46553]
[1766314883675,0.00564,88751.0,88740.0,1.09005]
[1766314884457,0.23749,88751.0,88740.0,0.46553]
[1766314884744,0.23185,88750.0,88736.0,0.62452]
[1766314884970,0.23185,88748.0,88734.0,0.00564]
[1766314885181,0.0586107,88749.0,88730.0,0.00564]
[1766314885182,0.23185,88742.0,88730.0,0.00564]
[1766314885368,0.23185,88742.0,88725.0,0.62452]
[1766314885369,0.23185,88740.0,88725.0,0.62452]
[1766314885578,0.36546,88735.0,88724.0,0.03949708]
[1766314885785,0.36546,88731.0,88724.0,0.00564]
[1766314886043,0.01916314,88734.0,88713.0,0.03386048]
[1766314886044,0.23185,88724.0,88713.0,0.03386048]
[1766314886243,0.00564,88734.0,88710.0,0.06089556]
[1766314886244,0.36546,88722.0,88710.0,0.06089556]
[1766314886445,0.01352314,88721.0,88709.0,0.06653556]
[1766314887194,0.01352314,88721.0,88709.0,0.00564]
[1766314887541,0.01352314,88722.0,88709.0,0.00564]
[1766314888534,0.24537314,88722.0,88709.0,0.00564]
[1766314889504,0.00564,88723.0,88709.0,0.00564]
[1766314889714,0.00564,88726.0,88723.0,0.00055]
[1766314889916,0.00564,88726.0,88721.0,0.62452]
[1766314890520,0.00564,88726.0,88721.0,1.09005]
[1766314891412,0.00564,88726.0,88709.0,0.06653556]
[1766314891624,0.23749,88722.0,88708.0,0.00564]
[1766314891824,0.36546,88720.0,88708.0,0.00564]
[1766314892026,0.2374,88719.0,88708.0,0.00564]
[1766314892875,0.2374,88719.0,88706.0,0.06089556]
[1766314893076,0.2374,88717.0,88707.0,0.00564]
[1766314893521,0.01352314,88716.0,88705.0,0.06089556]
[1766314893818,0.01352314,88716.0,88704.0,0.06089556]
[1766314893819,0.25092314,88716.0,88704.0,0.06089556]
[1766314894026,0.2374,88716.0,88703.0,0.06653556]
[1766314894306,0.01352314,88715.0,88703.0,0.06653556]
[1766314894711,0.00564,88718.0,88702.0,0.51455556]
[1766314894712,0.2374,88713.0,88702.0,0.51455556]
[1766314894933,0.00564,88712.0,88702.0,0.45366]
[1766314897502,0.24304,88712.0,88697.0,0.59855]
[1766314897773,0.6085,88712.0,88697.0,0.59855]
[1766314897984,0.6085,88712.0,88697.0,1.05116]
[1766314898824,0.6085,88712.0,88698.0,0.59357]
[1766314899136,0.6085,88712.0,88698.0,1.04618]
[1766314899708,0.2374,88711.0,88698.0,1.04618]
[1766314900905,0.2374,88728.0,88711.0,0.001099]
[1766314901144,0.00564,88727.0,88714.0,1.04618]
[1766314901348,0.00564,88726.0,88704.0,0.00564]
[1766314901549,0.00010766,88728.0,88707.0,0.45261]
[1766314901757,0.00010766,88728.0,88705.0,0.01916798]
[1766314901758,0.00564,88725.0,88712.0,0.59357]
[1766314901961,0.004541,88725.0,88716.0,0.59357]
[1766314902141,0.004541,88725.0,88705.0,0.00564]
[1766314902142,0.004541,88725.0,88719.0,0.59357]
[1766314902546,0.004541,88725.0,88719.0,1.04618]
[1766314903487,0.004541,88725.0,88720.0,0.59357]
[1766314904064,1e-06,88725.0,88721.0,0.45261]
[1766314904309,1e-06,88725.0,88721.0,1.04618]
[1766314907140,1e-06,88725.0,88712.0,0.00564]
[1766314907342,1e-06,88725.0,88713.0,0.01352676]
[1766314907703,0.00564,88734.0,88717.0,0.45261]
[1766314907833,0.00564,88734.0,88721.0,0.45261]
[1766314908044,0.00564,88734.0,88724.0,0.59357]
[1766314908248,0.00564,88734.0,88726.0,0.59357]
[1766314908454,0.00564,88734.0,88727.0,0.45261]
[1766314908725,0.04512,88744.0,88733.0,0.45261]
[1766314908726,0.00564,88741.0,88733.0,0.45261]
[1766314908963,0.00564,88741.0,88734.0,0.59357]
[1766314909371,0.00564,88747.0,88738.0,0.59357]
[1766314909519,0.00564,88747.0,88738.0,0.593021]
[1766314910545,0.00564,88747.0,88738.0,1.045631]
[1766314914427,0.00564,88747.0,88739.0,0.59357]
[1766314915422,0.00055,88739.0,88738.0,0.45261]
[1766314915621,0.00564,88747.0,88738.0,0.45261]
[1766314916808,0.00564,88747.0,88734.0,0.59357]
[1766314917198,0.26461,88747.0,88734.0,0.59357]
[1766314917425,0.25897,88746.0,88734.0,0.59357]
[1766314919748,0.25897,88746.0,88732.0,0.45825]
[1766314919945,0.25897,88745.0,88732.0,0.45825]
[1766314920811,0.25897,88743.0,88732.0,0.45825]
[1766314920963,0.25897,88742.0,88732.0,0.00564]
[1766314921797,0.37165,88741.0,88728.0,0.0001]
[1766314922048,0.37165,88741.0,88660.0,0.2]
[1766314922049,0.25323,88731.0,88723.0,0.00564]
[1766314922259,0.25323,88730.0,88723.0,0.00564]
[1766314922554,0.25323,88736.0,88723.0,0.00564]
[1766314922763,0.01352314,88735.0,88723.0,0.00564]
[1766314923742,0.01047314,88735.0,88723.0,0.00564]
[1766314924656,0.26370314,88735.0,88723.0,0.00564]
[1766314924836,0.25323,88735.0,88723.0,0.00564]
[1766314926127,0.25323,88733.0,88723.0,0.00564]
[1766314926333,0.00055,88723.0,88718.0,0.00564]
[1766314926543,0.25323,88728.0,88717.0,0.45271766]
[1766314926682,0.00055,88718.0,88703.0,0.06089556]
[1766314926883,0.37165,88715.0,88704.0,0.00564]
[1766314927064,0.25312,88716.0,88705.0,0.00564]
[1766314927269,0.01047314,88715.0,88705.0,0.00564]
[1766314929552,0.25312,88714.0,88704.0,0.00564]
[1766314929763,0.01047314,88713.0,88704.0,0.00564]
[1766314929980,0.01047314,88714.0,88704.0,0.00564]
[1766314931257,0.25312,88714.0,88704.0,0.00564]
[1766314931695,0.37165,88714.0,88704.0,0.00564]
[1766314931904,0.25312,88713.0,88704.0,0.00564]
[1766314932126,0.37165,88714.0,88700.0,0.46062]
[1766314932127,0.26359314,88712.0,88702.0,0.00564]
[1766314932345,0.01047314,88711.0,88702.0,0.00564]
[1766314932555,0.25312,88710.0,88702.0,0.00564]
[1766314932797,0.09332898,88748.0,88692.0,0.06089556]
[1766314932798,0.25367,88702.0,88692.0,0.06089556]
[1766314933014,0.25377516,88702.0,88690.0,0.00564]
[1766314933229,0.25322516,88702.0,88690.0,0.00564]
[1766314933879,0.25322516,88702.0,88690.0,0.58358]
[1766314935392,0.25312,88701.0,88691.0,0.00564]
[1766314935614,0.25312,88700.0,88691.0,0.00564]
[1766314935834,0.00055,88691.0,88682.0,0.00564]
[1766314936064,0.00055,88691.0,88670.0,0.04512]
[1766314936065,0.37165,88689.0,88673.0,0.46062]
[1766314936287,0.25212,88686.0,88674.0,0.00564]
[1766314936502,0.26259314,88685.0,88673.0,0.46062]
[1766314936793,0.25212,88684.0,88675.0,0.00564]
[1766314937019,0.25212,88684.0,88669.0,0.57794]
[1766314937020,0.25212,88682.0,88669.0,0.57794]
[1766314937246,0.25212,88681.0,88670.0,0.00564]
[1766314937468,0.00564,88686.0,88671.0,1.03856]
[1766314937696,0.00564,88686.0,88670.0,0.00564]
[1766314937914,0.00564,88686.0,88671.0,1.03856]
[1766314938139,0.00564,88686.0,88671.0,0.57794]
[1766314938372,0.00564,88686.0,88672.0,0.46062]
[1766314938605,0.00564,88686.0,88673.0,0.57794]
[1766314939261,0.00564,88686.0,88673.0,1.03856]
[1766314939779,0.00564,88686.0,88674.0,0.57794]
[1766314939988,0.00564,88686.0,88670.0,0.00564]
[1766314939989,0.005091,88686.0,88678.0,0.46062]
[1766314941864,0.005091,88686.0,88679.0,0.00024534]
[1766314942683,0.257211,88686.0,88679.0,3.4e-07]
[1766314943908,0.257211,88686.0,88676.0,0.00260034]
[1766314944125,0.25776,88698.0,88678.0,0.57794]
[1766314944354,0.0586107,88697.0,88682.0,0.46062]
[1766314944485,0.0586107,88697.0,88664.0,0.46062]
[1766314944486,0.25242,88681.0,88664.0,0.46062]
[1766314944687,0.25242,88677.0,88665.0,0.00564]
[1766314944881,0.01047314,88676.0,88665.0,0.00564]
[1766314946121,0.25242,88677.0,88676.0,0.000545]
[1766314946719,0.62407,88693.0,88670.0,1.03856]
[1766314946934,0.03388132,88694.0,88671.0,0.57794]
[1766314946935,0.37165,88686.0,88671.0,0.57794]
[1766314947080,0.26853314,88685.0,88671.0,0.57794]
[1766314947288,0.25242,88695.0,88673.0,0.57794]
[1766314947493,0.25242,88692.0,88673.0,0.57794]
[1766314947714,0.25242,88690.0,88672.0,0.00564]
[1766314947895,0.25242,88690.0,88674.0,1.03856]
[1766314950628,0.0586107,88708.0,88672.0,0.00564]
[1766314950629,0.29754,88704.0,88690.0,0.000545]
[1766314950849,0.25242,88704.0,88690.0,1.039105]
[1766314951063,0.00564,88701.0,88690.0,1.03856]
[1766314951269,0.00564,88701.0,88683.0,0.57794]
[1766314951486,0.00564,88701.0,88688.0,0.46062]
[1766314951674,0.00564,88701.0,88693.0,0.57794]
[1766314951909,0.00564,88701.0,88693.0,1.03856]
[1766314955862,0.00564,88701.0,88688.0,0.61729]
[1766314956067,0.00564,88701.0,88688.0,1.07704]
[1766314956217,0.00564,88701.0,88689.0,0.61729]
[1766314963530,0.00564,88701.0,88689.0,0.45975]
[1766314963753,0.00564,88701.0,88690.0,0.61729]
[1766314967005,0.000554,88690.0,88689.0,0.45975]
[1766314967208,0.000554,88690.0,88684.0,0.61729]
[1766314967428,0.000554,88690.0,88680.0,0.00564]
[1766314967633,0.25806,88689.0,88680.0,0.00564]
[1766314968999,0.00564,88692.0,88683.0,0.61729]
[1766314969198,0.00564,88692.0,88686.0,0.45975]
[1766314969410,0.04512,88706.0,88680.0,0.00564]
[1766314969411,0.00564,88694.0,88689.0,1.07704]
[1766314972010,0.00564,88694.0,88689.0,0.45975]
[1766314972208,0.00564,88694.0,88690.0,0.61729]
[1766314972743,0.00564,88694.0,88689.0,0.45975]
[1766314974366,0.00564,88694.0,88685.0,0.61729]
[1766314975201,0.00564,88694.0,88683.0,0.45975]
[1766314975406,0.000554,88689.0,88683.0,0.45975]
[1766314975954,0.2637,88693.0,88683.0,0.45975]
[1766314977892,0.37729,88691.0,88680.0,0.00564]
[1766314978101,0.2637,88690.0,88680.0,0.00564]
[1766314978316,0.37729,88685.0,88673.0,0.00564]
[1766314978534,0.1419,88682.0,88673.0,0.00564]
[1766314980539,0.00564,88687.0,88678.0,0.61729]
[1766314980785,0.37729,88698.0,88674.0,0.61729]
[1766314981010,0.37729,88698.0,88673.0,0.00564]
[1766314981011,0.00564,88697.0,88685.0,0.61729]
[1766314981227,0.00564,88697.0,88685.0,1.07704]
[1766314987840,0.00564,88697.0,88681.0,0.00564]
[1766314987841,0.00564,88697.0,88682.0,1.08364]
[1766314988309,0.00564,88697.0,88681.0,0.00564]
[1766314988732,0.00564,88697.0,88682.0,1.08364]
[1766314988940,0.00564,88697.0,88681.0,0.00564]
[1766314989548,0.00564,88697.0,88682.0,1.08364]
[1766314989990,0.00564,88697.0,88681.0,0.00564]
[1766314990192,0.03387432,88718.0,88681.0,0.00564]
[1766314990193,0.03387432,88718.0,88685.0,1.08364]